[Event "ESTCC 50 2019"]
[Site "Mali Losinj"]
[Date "2019.09.24"]
[Round "7.1"]
[White "Druckenthaner, Andreas"]
[Black "Kozul, Zdenko"]
[Result "0-1"]
[ECO "B25"]
[WhiteElo "2283"]
[BlackElo "2569"]
[Annotator "RC"]
[PlyCount "122"]
[EventDate "2019.09.18"]
[EventType "team-tourn"]
[EventCountry "CRO"]
[SourceTitle "playchess.com"]
[Source "ChessBase"]
[SourceQuality "1"]
[WhiteTeam "Austria"]
[BlackTeam "Croatia"]
[WhiteTeamCountry "AUT"]
[BlackTeamCountry "CRO"]
[TimeControl "40/5400+30:1800+30"]

1. e4 {[%emt 0:00:30]} c5 {[%emt 0:00:30]} 2. Nc3 {[%emt 0:00:00]} Nc6 {[%emt 0:02:30]} 3. g3 {[%emt 0:00:00]} g6 {[%emt 0:01:30]} 4. Bg2 {[%emt 0:00:30]} Bg7 {[%emt 0:00:30]} 5. d3 {[%emt 0:00:00]} d6 {[%emt 0:02:30]} 6. Nh3 {[%emt 0:05:00]} h5 {[%emt 0:05:30]} 7. O-O {[%emt 0:22:30]} Nf6 {[%emt 0:13:30]} 8. f3 {[%emt 0:01:30]} d5 {[%emt 0:03:30]} 9. Nf2 {[%emt 0:18:30]} d4 {[%emt 0:04:30]} 10. Ne2 {[%emt 0:02:30]} h4 {[%emt 0:00:30]} 11. g4 {[%emt 0:00:30]} e5 {[%emt 0:00:00]} 12. h3 {[%emt 0:00:30]} Nh7 {[%emt 0:01:00]} 13. f4 {[%emt 0:01:30]} exf4 {[%emt 0:01:30]} 14. Nxf4 {[%emt 0:03:30]} Be5 {[%emt 0:00:30]} 15. Nd5 {[%emt 0:03:30]} g5 {[%emt 0:06:30]} 16. c4 {[%emt 0:04:30]} Nf8 {[%emt 0:01:30]} 17. a3 {[%emt 0:03:30]} f6 {[%emt 0:03:30]} 18. b4 {[%emt 0:00:30]} a6 {[%emt 0:00:30]} 19. Qf3 {[%emt 0:03:30]} Ne6 {[%emt 0:01:30]} 20. Nd1 {[%emt 0:02:30]} O-O {[%emt 0:00:30]} 21. Bd2 {[%emt 0:01:30]} Bd7 {[%emt 0:04:30]} 22. Nb2 {[%emt 0:05:12]} b6 {[%emt 0:07:30]} 23. Rab1 {[%emt 0:06:22]} Ne7 {[%emt 0:07:30]} 24. bxc5 {[%emt 0:01:41]} Nxc5 {[%emt 0:03:30]} 25. Bb4 {[%emt 0:00:58]} a5 {[%emt 0:01:30]} 26. Bxc5 {[%emt 0:00:37]} bxc5 {[%emt 0:00:00]} 27. Qd1 {[%emt 0:01:25]} a4 {[%emt 0:11:28]} 28. Qc2 {[%emt 0:00:19]} Ng6 {[%emt 0:00:33]} 29. Nd1 {[%emt 0:00:31]} Rb8 {[%emt 0:01:46]} 30. Nf2 {[%emt 0:00:58]} Qa5 {[%emt 0:00:12]} 31. Rxb8 {[%emt 0:01:49]} Rxb8 {[%emt 0:00:16]} 32. Rb1 {[%emt 0:00:05]} Kf7 {[%emt 0:02:15]} 33. Rxb8 {[%emt 0:02:17]} Qe1+ {[%emt 0:01:31]} 34. Bf1 {[%emt 0:00:08]} Bxb8 {[%emt 0:00:03]} 35. Qd1 {[%emt 0:01:41]} Bh2+ {[%emt 0:02:48]} 36. Kg2 {[%emt 0:01:02]} Nf4+ {[%emt 0:00:30]} 37. Kxh2 {[%emt 0:02:03]} Qxf2+ {[%emt 0:00:27]} 38. Kh1 {[%emt 0:00:05]} Nxd5 {[%emt 0:05:13]} 39. exd5 {[%emt 0:01:58]} Qe3 {[%emt 0:02:11]} 40. Qe2 {[%emt 0:03:02]} f5 {[%emt 0:00:00]} 41. Qg2 {[%emt 0:20:14]} Kf6 {[%emt 0:12:47]} 42. Qh2 {[%emt 0:04:39]} f4 {[%emt 0:03:55]} 43. Qb2 {[%emt 0:01:12]} Ke7 {[%emt 0:01:19]} 44. Qb6 {[%emt 0:01:08]} Qf2 {[%emt 0:00:47]} 45. Qb1 {[%emt 0:01:19]} f3 {[%emt 0:01:35]} 46. Qc1 {[%emt 0:00:28]} Kd6 {[%emt 0:07:36]} 47. Qb1 {[%emt 0:00:36]} Kc7 {[%emt 0:00:06]} 48. Qc1 {[%emt 0:00:36]} Bc8 {[%emt 0:02:52]} 49. Qb1 {[%emt 0:00:31]} Bd7 {[%emt 0:03:47]} 50. Qc1 {[%emt 0:00:53]} Kb7 {[%emt 0:00:55]} 51. Qb1+ {[%emt 0:00:17]} Ka7 {[%emt 0:00:19]} 52. Qc1 {[%emt 0:00:16]} Qe3 {[%emt 0:01:17]} 53. Qd1 {[%emt 0:00:07]} Be8 {[%emt 0:00:19]} 54. Qc2 {[%emt 0:01:50]} Qe1 {[%emt 0:00:41]} 55. Kg1 {[%emt 0:00:07]} Bd7 {[%emt 0:00:05]} 56. Qh2 {[%emt 0:00:54]} Kb7 {[%emt 0:01:01]} 57. Qd6 {[%emt 0:01:01]} Qg3+ {[%emt 0:00:15]} 58. Qxg3 {[%emt 0:00:06]} hxg3 {[%emt 0:00:03]} 59. Bg2 {[%emt 0:00:07]} fxg2 {[%emt 0:00:08]} 60. Kxg2 {[%emt 0:00:16]} Be8 {[%emt 0:00:06]} 61. Kxg3 {[%emt 0:00:33]} Bg6 {[%emt 0:00:09]} 0-1

[Event "ESTCC 50 2019"]
[Site "Mali Losinj"]
[Date "2019.09.24"]
[Round "7.2"]
[White "Zelcic, Robert"]
[Black "Opl, Klaus"]
[Result "1-0"]
[ECO "C56"]
[WhiteElo "2503"]
[BlackElo "2207"]
[Annotator "ChessBase"]
[PlyCount "99"]
[EventDate "2019.09.18"]
[EventType "team-tourn"]
[EventCountry "CRO"]
[SourceTitle "playchess.com"]
[Source "ChessBase"]
[SourceQuality "1"]
[WhiteTeam "Croatia"]
[BlackTeam "Austria"]
[WhiteTeamCountry "CRO"]
[BlackTeamCountry "AUT"]
[TimeControl "40/5400+30:1800+30"]

1. e4 {[%emt 0:00:30]} e5 {[%emt 0:00:30]} 2. Nf3 {[%emt 0:00:30]} Nc6 {[%emt 0:00:00]} 3. Bc4 {[%emt 0:00:00]} Nf6 {[%emt 0:00:00]} 4. d4 {[%emt 0:00:00]} exd4 {[%emt 0:00:30]} 5. e5 {[%emt 0:00:00]} d5 {[%emt 0:00:30]} 6. Bb5 {[%emt 0:00:00]} Ne4 {[%emt 0:00:30]} 7. Nxd4 {[%emt 0:00:00]} Bd7 {[%emt 0:00:30]} 8. Bxc6 {[%emt 0:00:00]} bxc6 {[%emt 0:00:00]} 9. O-O {[%emt 0:00:30]} Bc5 {[%emt 0:00:00]} 10. f3 {[%emt 0:00:00]} Ng5 {[%emt 0:00:30]} 11. Be3 {[%emt 0:00:00]} O-O {[%emt 0:01:30]} 12. f4 {[%emt 0:00:00]} Ne4 {[%emt 0:01:30]} 13. Nd2 {[%emt 0:00:00]} f6 {[%emt 0:05:30]} 14. Nxe4 {[%emt 0:00:30]} dxe4 {[%emt 0:00:30]} 15. exf6 {[%emt 0:01:30]} Qxf6 {[%emt 0:00:30]} 16. Qe2 {[%emt 0:00:30]} Bd6 {[%emt 0:03:30]} 17. c3 {[%emt 0:01:30]} Rab8 {[%emt 0:05:30]} 18. Nb3 {[%emt 0:01:30]} Qh6 {[%emt 0:08:30]} 19. Nc5 {[%emt 0:17:30]} Bf5 {[%emt 0:04:30]} 20. b4 {[%emt 0:01:30]} Kh8 {[%emt 0:11:30]} 21. Kh1 {[%emt 0:00:30]} Qg6 {[%emt 0:02:30]} 22. h3 {[%emt 0:00:30]} Qh6 {[%emt 0:00:30]} 23. Kh2 {[%emt 0:07:30]} g5 {[%emt 0:07:30]} 24. Nxe4 {[%emt 0:01:30]} Bxe4 {[%emt 0:03:30]} 25. Bd4+ {[%emt 0:00:00]} Kg8 {[%emt 0:00:30]} 26. Qxe4 {[%emt 0:00:00]} Rbe8 {[%emt 0:00:30]} 27. Qd3 {[%emt 0:01:30]} Rxf4 {[%emt 0:02:30]} 28. Rxf4 {[%emt 0:05:30]} Bxf4+ {[%emt 0:01:30]} 29. g3 {[%emt 0:09:30]} Bd6 {[%emt 0:02:30]} 30. Qc4+ {[%emt 0:02:30]} Qe6 {[%emt 0:00:30]} 31. Qxe6+ {[%emt 0:11:30]} Rxe6 {[%emt 0:00:30]} 32. Bxa7 {[%emt 0:00:30]} Re2+ {[%emt 0:00:30]} 33. Kg1 {[%emt 0:00:30]} Bxg3 {[%emt 0:00:30]} 34. a4 {[%emt 0:00:30]} Be5 {[%emt 0:02:30]} 35. Ra3 {[%emt 0:01:30]} Rc2 {[%emt 0:01:30]} 36. a5 {[%emt 0:00:30]} Rd2 {[%emt 0:04:30]} 37. a6 {[%emt 0:00:30]} Rd8 {[%emt 0:00:00]} 38. Be3 {[%emt 0:02:30]} h6 {[%emt 0:01:00]} 39. c4 {[%emt 0:00:30]} Bd6 {[%emt 0:00:30]} 40. c5 {[%emt 0:03:30]} Be5 {[%emt 0:01:30]} 41. a7 {[%emt 0:32:30]} Ra8 {[%emt 0:30:30]} 42. b5 {[%emt 0:00:30]} cxb5 {[%emt 0:00:30]} 43. c6 {[%emt 0:00:00]} Bf4 {[%emt 0:02:30]} 44. Bd4 {[%emt 0:00:00]} Bd2 {[%emt 0:00:30]} 45. Ra2 {[%emt 0:00:30]} Bb4 {[%emt 0:00:30]} 46. Rb2 {[%emt 0:00:30]} Ba5 {[%emt 0:00:00]} 47. Rxb5 {[%emt 0:00:30]} Bb6 {[%emt 0:01:00]} 48. Bxb6 {[%emt 0:00:00]} cxb6 {[%emt 0:00:00]} 49. Rxb6 {[%emt 0:00:00]} Kf7 {[%emt 0:00:00]} 50. Rb8 {[%emt 0:00:00]} 1-0

[Event "ESTCC 50 2019"]
[Site "Mali Losinj"]
[Date "2019.09.24"]
[Round "7.3"]
[White "Watzka, Horst"]
[Black "Kurajica, Bojan"]
[Result "0-1"]
[ECO "B33"]
[WhiteElo "2187"]
[BlackElo "2493"]
[Annotator "ChessBase"]
[PlyCount "86"]
[EventDate "2019.09.18"]
[EventType "team-tourn"]
[EventCountry "CRO"]
[SourceTitle "playchess.com"]
[Source "ChessBase"]
[SourceQuality "1"]
[WhiteTeam "Austria"]
[BlackTeam "Croatia"]
[WhiteTeamCountry "AUT"]
[BlackTeamCountry "CRO"]
[TimeControl "40/5400+30:1800+30"]

1. e4 {[%emt 0:00:30]} c5 {[%emt 0:00:30]} 2. Nf3 {[%emt 0:00:30]} Nc6 {[%emt 0:00:00]} 3. d4 {[%emt 0:03:30]} cxd4 {[%emt 0:00:00]} 4. Nxd4 {[%emt 0:00:30]} Qb6 {[%emt 0:00:30]} 5. Nb3 {[%emt 0:02:30]} Nf6 {[%emt 0:00:00]} 6. Nc3 {[%emt 0:00:00]} e6 {[%emt 0:00:00]} 7. Bd3 {[%emt 0:01:00]} d6 {[%emt 0:00:30]} 8. Qe2 {[%emt 0:01:30]} a6 {[%emt 0:00:30]} 9. Be3 {[%emt 0:02:30]} Qc7 {[%emt 0:00:30]} 10. O-O-O {[%emt 0:05:30]} b5 {[%emt 0:00:00]} 11. f4 {[%emt 0:02:30]} Bb7 {[%emt 0:00:00]} 12. Kb1 {[%emt 0:01:30]} h5 {[%emt 0:07:30]} 13. Rhe1 {[%emt 0:02:30]} Be7 {[%emt 0:00:30]} 14. g3 {[%emt 0:01:30]} Nb4 {[%emt 0:12:30]} 15. Bg1 {[%emt 0:04:30]} Nd7 {[%emt 0:03:30]} 16. Qd2 {[%emt 0:10:30]} Nxd3 {[%emt 0:01:30]} 17. cxd3 {[%emt 0:03:30]} Nc5 {[%emt 0:13:30]} 18. Rc1 {[%emt 0:01:30]} O-O {[%emt 0:06:30]} 19. Qd1 {[%emt 0:00:30]} Qd8 {[%emt 0:01:30]} 20. d4 {[%emt 0:03:30]} Nxb3 {[%emt 0:00:30]} 21. Qxb3 {[%emt 0:00:30]} Qa5 {[%emt 0:08:30]} 22. a3 {[%emt 0:02:30]} Rac8 {[%emt 0:00:30]} 23. d5 {[%emt 0:00:30]} Rc4 {[%emt 0:02:30]} 24. Rcd1 {[%emt 0:10:30]} Rfc8 {[%emt 0:01:30]} 25. dxe6 {[%emt 0:02:30]} fxe6 {[%emt 0:00:00]} 26. f5 {[%emt 0:00:30]} Bf6 {[%emt 0:15:00]} 27. Rxd6 {[%emt 0:12:30]} Bxc3 {[%emt 0:03:30]} 28. bxc3 {[%emt 0:00:30]} Bxe4+ {[%emt 0:02:30]} 29. Rxe4 {[%emt 0:03:30]} Rxe4 {[%emt 0:00:30]} 30. Rxe6 {[%emt 0:00:00]} Rec4 {[%emt 0:00:00]} 31. Bd4 {[%emt 0:01:00]} b4 {[%emt 0:01:00]} 32. Re5 {[%emt 0:02:38]} Qxa3 {[%emt 0:00:30]} 33. Qxa3 {[%emt 0:00:10]} bxa3 {[%emt 0:00:30]} 34. Ka2 {[%emt 0:01:46]} Kf7 {[%emt 0:07:08]} 35. Kxa3 {[%emt 0:00:30]} Rxc3+ {[%emt 0:00:22]} 36. Bxc3 {[%emt 0:00:15]} Rxc3+ {[%emt 0:00:05]} 37. Kb4 {[%emt 0:01:19]} Rc2 {[%emt 0:00:18]} 38. h3 {[%emt 0:16:03]} Rg2 {[%emt 0:00:31]} 39. Re3 {[%emt 0:00:06]} Kf6 {[%emt 0:01:46]} 40. Rf3 {[%emt 0:00:03]} Rh2 {[%emt 0:00:00]} 41. h4 {[%emt 0:04:10]} Ra2 {[%emt 0:12:50]} 42. Rf1 {[%emt 0:00:30]} a5+ {[%emt 0:03:30]} 43. Kb3 {[%emt 0:01:30]} Re2 {[%emt 0:01:30]} 0-1

[Event "ESTCC 50 2019"]
[Site "Mali Losinj"]
[Date "2019.09.24"]
[Round "7.4"]
[White "Fercec, Nenad"]
[Black "Ernst, Michael"]
[Result "1-0"]
[ECO "C10"]
[WhiteElo "2439"]
[BlackElo "2199"]
[Annotator "NA"]
[PlyCount "45"]
[EventDate "2019.09.18"]
[EventType "team-tourn"]
[EventCountry "CRO"]
[SourceTitle "playchess.com"]
[Source "ChessBase"]
[SourceQuality "1"]
[WhiteTeam "Croatia"]
[BlackTeam "Austria"]
[WhiteTeamCountry "CRO"]
[BlackTeamCountry "AUT"]
[TimeControl "40/5400+30:1800+30"]

1. e4 {[%emt 0:00:30]} e6 {[%emt 0:00:30]} 2. d4 {[%emt 0:00:00]} d5 {[%emt 0:00:00]} 3. Nd2 {[%emt 0:00:00]} dxe4 {[%emt 0:01:00]} 4. Nxe4 {[%emt 0:00:30]} Bd7 {[%emt 0:00:30]} 5. Nf3 {[%emt 0:00:30]} Bc6 {[%emt 0:00:30]} 6. Neg5 {[%emt 0:00:30]} Be7 {[%emt 0:02:30]} 7. Bc4 {[%emt 0:02:30]} Bd5 {[%emt 0:01:30]} 8. Bd3 {[%emt 0:08:30]} Nf6 {[%emt 0:01:30]} 9. Ne5 {[%emt 0:00:30]} O-O {[%emt 0:00:00]} 10. c3 {[%emt 0:03:30]} c5 {[%emt 0:05:00]} 11. Qc2 {[%emt 0:12:30]} g6 {[%emt 0:02:30]} 12. h4 {[%emt 0:01:30]} Nc6 {[%emt 0:03:30]} 13. h5 {[%emt 0:10:30]} Nxe5 {[%emt 0:03:30]} 14. dxe5 {[%emt 0:00:30]} Nxh5 {[%emt 0:07:30]} 15. Rxh5 {[%emt 0:10:30]} gxh5 {[%emt 0:00:30]} 16. Bxh7+ {[%emt 0:01:30]} Kg7 {[%emt 0:01:30]} 17. Bg8 {[%emt 0:01:30]} f5 {[%emt 0:01:30]} 18. exf6+ {[%emt 0:00:30]} Rxf6 {[%emt 0:09:30]} 19. Qh7+ {[%emt 0:00:30]} Kf8 {[%emt 0:00:30]} 20. Qh8 {[%emt 0:02:30]} Ke8 {[%emt 0:01:30]} 21. Bxe6+ {[%emt 0:01:30]} Bf8 {[%emt 0:00:30]} 22. Bxd5 {[%emt 0:01:30]} Rf5 {[%emt 0:07:30]} 23. Qxh5+ {[%emt 0:00:30]} 1-0

[Event "ESTCC 50 2019"]
[Site "Mali Losinj"]
[Date "2019.09.24"]
[Round "7.5"]
[White "Ponce Navalon, Jose"]
[Black "Burmakin, Vladimir"]
[Result "0-1"]
[ECO "B13"]
[WhiteElo "2024"]
[BlackElo "2496"]
[Annotator "ChessBase"]
[PlyCount "58"]
[EventDate "2019.09.18"]
[EventType "team-tourn"]
[EventCountry "CRO"]
[SourceTitle "playchess.com"]
[Source "ChessBase"]
[SourceQuality "1"]
[WhiteTeam "Spain"]
[BlackTeam "Russia"]
[WhiteTeamCountry "ESP"]
[BlackTeamCountry "RUS"]
[TimeControl "40/5400+30:1800+30"]

1. e4 {[%emt 0:00:30]} c6 {[%emt 0:00:30]} 2. d4 {[%emt 0:00:00]} d5 {[%emt 0:00:00]} 3. exd5 {[%emt 0:00:00]} cxd5 {[%emt 0:00:00]} 4. Bd3 {[%emt 0:00:30]} Nf6 {[%emt 0:00:30]} 5. h3 {[%emt 0:00:30]} g6 {[%emt 0:00:00]} 6. Nf3 {[%emt 0:00:30]} Nc6 {[%emt 0:00:00]} 7. O-O {[%emt 0:00:30]} Bg7 {[%emt 0:01:30]} 8. Re1 {[%emt 0:01:30]} O-O {[%emt 0:00:30]} 9. c3 {[%emt 0:00:30]} Bf5 {[%emt 0:00:30]} 10. Bxf5 {[%emt 0:07:30]} gxf5 {[%emt 0:00:30]} 11. Bg5 {[%emt 0:00:30]} Ne4 {[%emt 0:00:00]} 12. Nbd2 {[%emt 0:00:30]} Qd6 {[%emt 0:17:00]} 13. Re3 {[%emt 0:17:30]} Kh8 {[%emt 0:01:30]} 14. Nxe4 {[%emt 0:02:30]} fxe4 {[%emt 0:00:30]} 15. Nh2 {[%emt 0:00:00]} f5 {[%emt 0:00:30]} 16. g3 {[%emt 0:02:00]} Bh6 {[%emt 0:06:30]} 17. Bxh6 {[%emt 0:09:30]} Qxh6 {[%emt 0:00:30]} 18. Qb3 {[%emt 0:00:30]} Qd6 {[%emt 0:00:30]} 19. f4 {[%emt 0:01:30]} Rg8 {[%emt 0:00:00]} 20. Rf1 {[%emt 0:00:30]} Na5 {[%emt 0:00:00]} 21. Qd1 {[%emt 0:01:30]} Nc4 {[%emt 0:00:00]} 22. Qe2 {[%emt 0:00:00]} Raf8 {[%emt 0:03:00]} 23. Qf2 {[%emt 0:02:00]} Nxe3 {[%emt 0:01:30]} 24. Qxe3 {[%emt 0:00:00]} Rf6 {[%emt 0:00:30]} 25. Rf2 {[%emt 0:00:00]} h5 {[%emt 0:03:30]} 26. h4 {[%emt 0:01:30]} Rxg3+ {[%emt 0:00:30]} 27. Qxg3 {[%emt 0:00:30]} Rg6 {[%emt 0:00:30]} 28. Kg2 {[%emt 0:01:30]} Rxg3+ {[%emt 0:00:30]} 29. Kxg3 {[%emt 0:00:00]} Qa6 {[%emt 0:00:00]} 0-1

[Event "ESTCC 50 2019"]
[Site "Mali Losinj"]
[Date "2019.09.24"]
[Round "7.6"]
[White "Gleizerov, Evgeny"]
[Black "Pastor Alonso De Prado, Alberto"]
[Result "1-0"]
[ECO "E18"]
[WhiteElo "2503"]
[BlackElo "2010"]
[Annotator "ChessBase"]
[PlyCount "31"]
[EventDate "2019.09.18"]
[EventType "team-tourn"]
[EventCountry "CRO"]
[SourceTitle "playchess.com"]
[Source "ChessBase"]
[SourceQuality "1"]
[WhiteTeam "Russia"]
[BlackTeam "Spain"]
[WhiteTeamCountry "RUS"]
[BlackTeamCountry "ESP"]
[TimeControl "40/5400+30:1800+30"]

1. d4 {[%emt 0:00:30]} d5 {[%emt 0:00:30]} 2. c4 {[%emt 0:00:00]} e6 {[%emt 0:00:30]} 3. Nf3 {[%emt 0:00:00]} Nf6 {[%emt 0:00:30]} 4. g3 {[%emt 0:00:00]} Be7 {[%emt 0:00:30]} 5. Bg2 {[%emt 0:00:00]} O-O {[%emt 0:00:00]} 6. O-O {[%emt 0:00:30]} b6 {[%emt 0:00:00]} 7. cxd5 {[%emt 0:00:30]} exd5 {[%emt 0:00:30]} 8. Nc3 {[%emt 0:00:00]} Bb7 {[%emt 0:08:30]} 9. Qc2 {[%emt 0:03:00]} Na6 {[%emt 0:00:30]} 10. Bf4 {[%emt 0:00:30]} h6 {[%emt 0:01:30]} 11. Rad1 {[%emt 0:01:30]} Qc8 {[%emt 0:13:30]} 12. Nh4 {[%emt 0:16:30]} Re8 {[%emt 0:00:30]} 13. Nf5 {[%emt 0:07:30]} Bf8 {[%emt 0:07:30]} 14. Bh3 {[%emt 0:01:30]} Kh8 {[%emt 0:06:30]} 15. Be5 {[%emt 0:03:30]} Ne4 {[%emt 0:02:30]} 16. Nxg7 {[%emt 0:00:30]} 1-0

[Event "ESTCC 50 2019"]
[Site "Mali Losinj"]
[Date "2019.09.24"]
[Round "7.8"]
[White "Ibragimov, Ildar"]
[Black "Lopez de Turiso, Jose Angel"]
[Result "1-0"]
[ECO "D37"]
[WhiteElo "2537"]
[BlackElo "1945"]
[Annotator "ChessBase"]
[PlyCount "56"]
[EventDate "2019.09.18"]
[EventType "team-tourn"]
[EventCountry "CRO"]
[SourceTitle "playchess.com"]
[Source "ChessBase"]
[SourceQuality "1"]
[WhiteTeam "Russia"]
[BlackTeam "Spain"]
[WhiteTeamCountry "RUS"]
[BlackTeamCountry "ESP"]
[TimeControl "40/5400+30:1800+30"]

1. d4 {[%emt 0:00:30]} d5 {[%emt 0:00:30]} 2. Nf3 {[%emt 0:00:30]} Nf6 {[%emt 0:00:30]} 3. c4 {[%emt 0:00:30]} e6 {[%emt 0:00:30]} 4. Nc3 {[%emt 0:00:30]} Be7 {[%emt 0:00:30]} 5. Bf4 {[%emt 0:01:30]} O-O {[%emt 0:01:30]} 6. e3 {[%emt 0:00:30]} b6 {[%emt 0:01:30]} 7. Qc2 {[%emt 0:11:30]} c5 {[%emt 0:21:30]} 8. cxd5 {[%emt 0:03:30]} exd5 {[%emt 0:06:30]} 9. Be2 {[%emt 0:03:30]} Bb7 {[%emt 0:05:30]} 10. Rd1 {[%emt 0:06:30]} Nbd7 {[%emt 0:06:30]} 11. O-O {[%emt 0:06:30]} a6 {[%emt 0:01:30]} 12. dxc5 {[%emt 0:00:30]} bxc5 {[%emt 0:00:30]} 13. Ne5 {[%emt 0:02:30]} Nb6 {[%emt 0:18:30]} 14. Nc4 {[%emt 0:09:30]} Nxc4 {[%emt 0:12:30]} 15. Bxc4 {[%emt 0:00:30]} Qd7 {[%emt 0:02:01]} 16. Be5 {[%emt 0:07:30]} Qe6 {[%emt 0:01:39]} 17. Bxf6 {[%emt 0:00:00]} dxc4 {[%emt 0:00:23]} 18. Bxe7 {[%emt 0:01:00]} Qxe7 {[%emt 0:00:07]} 19. Qa4 {[%emt 0:02:30]} Qh4 {[%emt 0:06:43]} 20. e4 {[%emt 0:01:30]} f5 {[%emt 0:05:36]} 21. Rd7 {[%emt 0:02:30]} Rab8 {[%emt 0:02:01]} 22. Qxc4+ {[%emt 0:04:30]} Kh8 {[%emt 0:00:07]} 23. Qxc5 {[%emt 0:00:30]} Bxe4 {[%emt 0:02:27]} 24. Qe5 {[%emt 0:06:30]} Qh6 {[%emt 0:01:35]} 25. Nxe4 {[%emt 0:04:30]} fxe4 {[%emt 0:00:02]} 26. Rd6 {[%emt 0:00:30]} Qh4 {[%emt 0:00:34]} 27. Rxa6 {[%emt 0:00:30]} Rfe8 {[%emt 0:01:04]} 28. Re6 {[%emt 0:00:00]} Rxe6 {[%emt 0:01:15]} 1-0

[Event "ESTCC 50 2019"]
[Site "Mali Losinj"]
[Date "2019.09.24"]
[Round "7.9"]
[White "Sulc, Damir"]
[Black "Mikhalchishin, Adrian"]
[Result "0-1"]
[ECO "C60"]
[WhiteElo "2207"]
[BlackElo "2465"]
[Annotator "ChessBase"]
[PlyCount "67"]
[EventDate "2019.09.18"]
[EventType "team-tourn"]
[EventCountry "CRO"]
[SourceTitle "playchess.com"]
[Source "ChessBase"]
[SourceQuality "1"]
[WhiteTeam "Croatia"]
[BlackTeam "Slovenia"]
[WhiteTeamCountry "CRO"]
[BlackTeamCountry "SLO"]
[TimeControl "40/5400+30:1800+30"]

1. e4 {[%emt 0:00:30]} e5 {[%emt 0:00:30]} 2. Nf3 {[%emt 0:00:00]} Nc6 {[%emt 0:00:30]} 3. Bb5 {[%emt 0:00:00]} a6 {[%emt 0:00:30]} 4. Ba4 {[%emt 0:00:30]} Nge7 {[%emt 0:00:30]} 5. c3 {[%emt 0:01:30]} g6 {[%emt 0:00:30]} 6. O-O {[%emt 0:00:30]} Bg7 {[%emt 0:01:30]} 7. d4 {[%emt 0:01:30]} b5 {[%emt 0:05:30]} 8. Bb3 {[%emt 0:01:30]} exd4 {[%emt 0:01:30]} 9. cxd4 {[%emt 0:00:30]} d6 {[%emt 0:01:30]} 10. h3 {[%emt 0:01:30]} O-O {[%emt 0:01:30]} 11. Nc3 {[%emt 0:06:30]} Na5 {[%emt 0:01:30]} 12. Bc2 {[%emt 0:01:30]} c5 {[%emt 0:01:30]} 13. Bf4 {[%emt 0:18:30]} cxd4 {[%emt 0:14:30]} 14. Nxd4 {[%emt 0:07:30]} Nc4 {[%emt 0:03:30]} 15. Nde2 {[%emt 0:15:30]} Nxb2 {[%emt 0:15:30]} 16. Qxd6 {[%emt 0:00:30]} Be6 {[%emt 0:01:30]} 17. a4 {[%emt 0:03:30]} Rc8 {[%emt 0:20:30]} 18. e5 {[%emt 0:18:18]} Nd5 {[%emt 0:00:30]} 19. Nxd5 {[%emt 0:02:48]} Rxc2 {[%emt 0:06:40]} 20. Ne7+ {[%emt 0:10:38]} Kh8 {[%emt 0:00:20]} 21. Ng3 {[%emt 0:00:19]} Qxd6 {[%emt 0:08:14]} 22. exd6 {[%emt 0:00:08]} Nd3 {[%emt 0:01:18]} 23. Be3 {[%emt 0:01:26]} Bxa1 {[%emt 0:00:35]} 24. Rxa1 {[%emt 0:00:05]} b4 {[%emt 0:00:17]} 25. Rd1 {[%emt 0:01:41]} Ne5 {[%emt 0:02:39]} 26. Bd4 {[%emt 0:01:57]} f6 {[%emt 0:00:06]} 27. Ne4 {[%emt 0:00:16]} Nd7 {[%emt 0:01:28]} 28. Re1 {[%emt 0:01:50]} Kg7 {[%emt 0:04:12]} 29. f4 {[%emt 0:01:05]} Kf7 {[%emt 0:01:46]} 30. g4 {[%emt 0:00:40]} b3 {[%emt 0:02:18]} 31. f5 {[%emt 0:01:13]} gxf5 {[%emt 0:00:42]} 32. gxf5 {[%emt 0:00:30]} Bc4 {[%emt 0:00:36]} 33. Rb1 {[%emt 0:00:34]} Bd3 {[%emt 0:00:00]} 34. Re1 {[%emt 0:01:17]} 0-1